[Event "Slovakia Open Piestany-A 2022"]
[Site "Piestany"]
[Date "2022.07.15"]
[Round "6.2"]
[White "Moroni, Luca Jr"]
[Black "Lewtak, Damian"]
[Result "1/2-1/2"]
[ECO "A40"]
[WhiteElo "2584"]
[BlackElo "2397"]
[Annotator "ChessBase"]
[PlyCount "120"]
[EventDate "2022.07.12"]
[EventType "swiss"]
[EventCountry "SVK"]
[SourceTitle "playchess.com"]
[Source "ChessBase"]
[SourceQuality "1"]
[TimeControl "40/5400+30:1800+30"]

1. d4 {[%emt 0:04:23]} e6 {[%emt 0:00:04]} 2. c4 {[%emt 0:00:10]} Bb4+ {[%emt 0:00:05]} 3. Nd2 {[%emt 0:00:21]} c5 {[%emt 0:00:05]} 4. dxc5 {[%emt 0:02:12]} Nf6 {[%emt 0:04:00]} 5. Ngf3 {[%emt 0:05:31]} Bxc5 {[%emt 0:02:42]} 6. e3 {[%emt 0:00:45]} Be7 {[%emt 0:02:30]} 7. b3 {[%emt 0:03:10]} b6 {[%emt 0:01:44]} 8. Bb2 {[%emt 0:03:44]} Bb7 {[%emt 0:00:28]} 9. Bd3 {[%emt 0:00:14]} d6 {[%emt 0:00:16]} 10. O-O {[%emt 0:01:15]} Nbd7 {[%emt 0:00:54]} 11. Qe2 {[%emt 0:07:57]} Qc7 {[%emt 0:02:58]} 12. e4 {[%emt 0:05:14]} Rc8 {[%emt 0:04:05]} 13. Rad1 {[%emt 0:07:10]} Qb8 {[%emt 0:04:25]} 14. e5 {[%emt 0:06:15]} dxe5 {[%emt 0:02:19]} 15. Nxe5 {[%emt 0:00:05]} Nxe5 {[%emt 0:10:49]} 16. Bxe5 {[%emt 0:00:32]} Qa8 {[%emt 0:00:03]} 17. Bxf6 {[%emt 0:07:25]} Bxf6 {[%emt 0:02:32]} 18. Be4 {[%emt 0:00:03]} O-O {[%emt 0:04:09]} 19. Bxb7 {[%emt 0:07:16]} Qxb7 {[%emt 0:00:15]} 20. Ne4 {[%emt 0:00:06]} Be7 {[%emt 0:09:22]} 21. Nd6 {[%emt 0:02:00]} Bxd6 {[%emt 0:00:06]} 22. Rxd6 {[%emt 0:00:03]} Rfd8 {[%emt 0:01:34]} 23. Rfd1 {[%emt 0:00:04]} Qc7 {[%emt 0:00:30]} 24. R6d3 {[%emt 0:04:10]} h6 {[%emt 0:00:46]} 25. g3 {[%emt 0:01:38]} Rxd3 {[%emt 0:03:50]} 26. Qxd3 {[%emt 0:00:37]} Re8 {[%emt 0:00:23]} 27. Qd4 {[%emt 0:01:30]} e5 {[%emt 0:02:51]} 28. Qe4 {[%emt 0:00:27]} Re7 {[%emt 0:06:24]} 29. h4 {[%emt 0:03:36]} h5 {[%emt 0:10:50]} 30. Rd5 {[%emt 0:05:10]} g6 {[%emt 0:02:37]} 31. b4 {[%emt 0:02:40]} Kh7 {[%emt 0:03:05]} 32. a4 {[%emt 0:03:17]} f5 {[%emt 0:03:03]} 33. Qd3 {[%emt 0:05:00]} e4 {[%emt 0:00:15]} 34. Qd4 {[%emt 0:01:23]} e3 {[%emt 0:00:48]} 35. Kf1 {[%emt 0:01:33]} exf2 {[%emt 0:05:47]} 36. Kxf2 {[%emt 0:01:00]} Qc6 {[%emt 0:02:19]} 37. Rd8 {[%emt 0:03:49]} Rg7 {[%emt 0:00:14]} 38. b5 {[%emt 0:00:46]} Qe6 {[%emt 0:01:37]} 39. Rd6 {[%emt 0:04:16]} Qe7 {[%emt 0:00:40]} 40. Qf4 {[%emt 0:03:03]} Qf8 {[%emt 0:03:15]} 41. a5 {[%emt 0:04:36]} bxa5 {[%emt 0:02:40]} 42. c5 {[%emt 0:05:16]} Qb8 {[%emt 0:00:42]} 43. Qc4 {[%emt 0:02:32]} Qc7 {[%emt 0:01:51]} 44. Rd5 {[%emt 0:04:42]} Rf7 {[%emt 0:04:14]} 45. Qd4 {[%emt 0:10:11]} a4 {[%emt 0:04:50]} 46. Qxa4 {[%emt 0:01:04]} f4 {[%emt 0:02:31]} 47. Qe4 {[%emt 0:00:20]} fxg3+ {[%emt 0:02:04]} 48. Kg2 {[%emt 0:00:30]} Rf2+ {[%emt 0:03:44]} 49. Kg1 {[%emt 0:00:01]} Kh6 {[%emt 0:00:11]} 50. Qd4 {[%emt 0:02:07]} Qg7 {[%emt 0:07:24]} 51. Qxg7+ {[%emt 0:00:34]} Kxg7 {[%emt 0:00:06]} 52. Rd7+ {[%emt 0:00:01]} Kf6 {[%emt 0:00:13]} 53. Rxa7 {[%emt 0:00:02]} Rc2 {[%emt 0:01:16]} 54. c6 {[%emt 0:01:12]} Kf5 {[%emt 0:03:07]} 55. Ra1 {[%emt 0:03:01]} g5 {[%emt 0:02:36]} 56. Rb1 {[%emt 0:00:05]} gxh4 {[%emt 0:00:35]} 57. b6 {[%emt 0:00:01]} h3 {[%emt 0:00:09]} 58. c7 {[%emt 0:00:33]} Kg6 {[%emt 0:00:45]} 59. b7 {[%emt 0:01:34]} Rg2+ {[%emt 0:00:06]} 60. Kf1 {[%emt 0:00:14]} Rf2+ {[%emt 0:00:06]} 1/2-1/2

[Event "Slovakia Open Piestany-A 2022"]
[Site "Piestany"]
[Date "2022.07.15"]
[Round "6.3"]
[White "Neugebauer, Martin"]
[Black "Kozak, Antoni"]
[Result "1/2-1/2"]
[ECO "B90"]
[WhiteElo "2528"]
[BlackElo "2475"]
[Annotator "ChessBase"]
[PlyCount "60"]
[EventDate "2022.07.12"]
[EventType "swiss"]
[EventCountry "SVK"]
[SourceTitle "playchess.com"]
[Source "ChessBase"]
[SourceQuality "1"]
[TimeControl "40/5400+30:1800+30"]

1. e4 {[%emt 0:05:30]} c5 {[%emt 0:00:03]} 2. Nf3 {[%emt 0:00:15]} d6 {[%emt 0:00:04]} 3. d4 {[%emt 0:00:19]} cxd4 {[%emt 0:00:05]} 4. Nxd4 {[%emt 0:00:05]} Nf6 {[%emt 0:00:04]} 5. Nc3 {[%emt 0:00:07]} a6 {[%emt 0:00:02]} 6. h3 {[%emt 0:00:46]} e5 {[%emt 0:00:05]} 7. Nb3 {[%emt 0:00:06]} Be6 {[%emt 0:01:36]} 8. f4 {[%emt 0:00:39]} Nbd7 {[%emt 0:08:08]} 9. f5 {[%emt 0:04:45]} Bxb3 {[%emt 0:00:09]} 10. axb3 {[%emt 0:00:06]} d5 {[%emt 0:00:03]} 11. exd5 {[%emt 0:06:55]} Bb4 {[%emt 0:00:04]} 12. Bd2 {[%emt 0:18:58]} O-O {[%emt 0:01:56]} 13. Qe2 {[%emt 0:03:28]} Bxc3 {[%emt 0:17:11]} 14. bxc3 {[%emt 0:01:05]} Nxd5 {[%emt 0:00:08]} 15. O-O-O {[%emt 0:11:51]} Qc7 {[%emt 0:14:52]} 16. c4 {[%emt 0:20:28]} Ne7 {[%emt 0:02:21]} 17. Bb4 {[%emt 0:04:20]} Nxf5 {[%emt 0:04:53]} 18. Qf2 {[%emt 0:11:11]} Nd4 {[%emt 0:01:53]} 19. Bxf8 {[%emt 0:00:14]} Rxf8 {[%emt 0:05:12]} 20. Be2 {[%emt 0:00:10]} Nc5 {[%emt 0:15:56]} 21. Bf3 {[%emt 0:00:07]} b5 {[%emt 0:02:43]} 22. Rxd4 {[%emt 0:01:33]} exd4 {[%emt 0:00:06]} 23. Qxd4 {[%emt 0:00:08]} Rd8 {[%emt 0:02:46]} 24. Bd5 {[%emt 0:03:41]} bxc4 {[%emt 0:03:10]} 25. Qxc4 {[%emt 0:01:12]} Qe5 {[%emt 0:01:01]} 26. Rd1 {[%emt 0:01:36]} Qa1+ {[%emt 0:02:24]} 27. Kd2 {[%emt 0:00:04]} Qe5 {[%emt 0:00:06]} 28. Kc1 {[%emt 0:00:05]} Qa1+ {[%emt 0:00:19]} 29. Kd2 {[%emt 0:00:04]} Qe5 {[%emt 0:00:05]} 30. Kc1 {[%emt 0:00:06]} Qa1+ {[%emt 0:00:03]} 1/2-1/2

[Event "Slovakia Open Piestany-A 2022"]
[Site "Piestany"]
[Date "2022.07.15"]
[Round "6.4"]
[White "Pacher, Milan"]
[Black "Donchenko, Alexander"]
[Result "0-1"]
[ECO "B22"]
[WhiteElo "2399"]
[BlackElo "2640"]
[Annotator "ChessBase"]
[PlyCount "92"]
[EventDate "2022.07.12"]
[EventType "swiss"]
[EventCountry "SVK"]
[SourceTitle "playchess.com"]
[Source "ChessBase"]
[SourceQuality "1"]
[TimeControl "40/5400+30:1800+30"]

1. e4 {[%emt 0:11:06]} c5 {[%emt 0:00:14]} 2. c3 {[%emt 0:00:24]} Nf6 {[%emt 0:00:16]} 3. e5 {[%emt 0:00:06]} Nd5 {[%emt 0:00:06]} 4. Bc4 {[%emt 0:00:17]} Nb6 {[%emt 0:00:27]} 5. Bb3 {[%emt 0:00:03]} d5 {[%emt 0:01:55]} 6. exd6 {[%emt 0:00:07]} Qxd6 {[%emt 0:02:34]} 7. Nf3 {[%emt 0:00:08]} c4 {[%emt 0:03:53]} 8. Bc2 {[%emt 0:00:39]} Qe6+ {[%emt 0:00:40]} 9. Qe2 {[%emt 0:00:41]} Qxe2+ {[%emt 0:04:03]} 10. Kxe2 {[%emt 0:00:02]} Nc6 {[%emt 0:00:18]} 11. a4 {[%emt 0:12:58]} e5 {[%emt 0:07:48]} 12. Re1 {[%emt 0:06:24]} f6 {[%emt 0:09:58]} 13. a5 {[%emt 0:08:10]} Nd5 {[%emt 0:02:37]} 14. Kf1 {[%emt 0:00:31]} Be6 {[%emt 0:14:26]} 15. a6 {[%emt 0:01:42]} b6 {[%emt 0:03:55]} 16. d4 {[%emt 0:07:53]} cxd3 {[%emt 0:00:54]} 17. Bxd3 {[%emt 0:00:03]} O-O-O {[%emt 0:00:48]} 18. Be4 {[%emt 0:02:06]} Be7 {[%emt 0:04:59]} 19. Na3 {[%emt 0:00:06]} Bxa3 {[%emt 0:11:37]} 20. Rxa3 {[%emt 0:00:07]} Na5 {[%emt 0:00:05]} 21. Nd2 {[%emt 0:08:06]} Nc7 {[%emt 0:02:44]} 22. b4 {[%emt 0:07:19]} Nc4 {[%emt 0:00:32]} 23. Nxc4 {[%emt 0:00:05]} Bxc4+ {[%emt 0:00:03]} 24. Kg1 {[%emt 0:00:06]} Nb5 {[%emt 0:02:07]} 25. Ra1 {[%emt 0:00:03]} Nxc3 {[%emt 0:00:47]} 26. Bb7+ {[%emt 0:02:04]} Kc7 {[%emt 0:02:49]} 27. Be3 {[%emt 0:05:45]} Ne2+ {[%emt 0:02:14]} 28. Kh1 {[%emt 0:00:20]} Rd6 {[%emt 0:00:15]} 29. g4 {[%emt 0:10:31]} g5 {[%emt 0:02:00]} 30. h4 {[%emt 0:02:55]} h5 {[%emt 0:03:18]} 31. hxg5 {[%emt 0:00:58]} hxg4+ {[%emt 0:00:02]} 32. Kg2 {[%emt 0:00:05]} f5 {[%emt 0:00:08]} 33. Rh1 {[%emt 0:01:46]} Rhd8 {[%emt 0:08:37]} 34. Rh7+ {[%emt 0:00:20]} R6d7 {[%emt 0:02:33]} 35. Rh6 {[%emt 0:01:14]} Kb8 {[%emt 0:00:48]} 36. Bc6 {[%emt 0:03:59]} Rc7 {[%emt 0:00:41]} 37. b5 {[%emt 0:02:24]} f4 {[%emt 0:00:49]} 38. Bc1 {[%emt 0:00:53]} Nxc1 {[%emt 0:00:59]} 39. Rxc1 {[%emt 0:00:12]} Bxb5 {[%emt 0:00:07]} 40. Bxb5 {[%emt 0:02:04]} Rxc1 {[%emt 0:00:04]} 41. g6 {[%emt 0:30:12]} Rdd1 {[%emt 0:31:47]} 42. Rh8+ {[%emt 0:01:15]} Kc7 {[%emt 0:00:06]} 43. Rh7+ {[%emt 0:00:04]} Kd6 {[%emt 0:00:29]} 44. g7 {[%emt 0:01:23]} Rg1+ {[%emt 0:00:06]} 45. Kh2 {[%emt 0:00:02]} Rh1+ {[%emt 0:00:05]} 46. Kg2 {[%emt 0:00:03]} Rcg1# {[%emt 0:00:05]} 0-1

[Event "Slovakia Open Piestany-A 2022"]
[Site "Piestany"]
[Date "2022.07.15"]
[Round "6.5"]
[White "Bhambure, Shantanu"]
[Black "Schitco, Ivan"]
[Result "0-1"]
[ECO "D52"]
[WhiteElo "2320"]
[BlackElo "2490"]
[Annotator "ChessBase"]
[PlyCount "84"]
[EventDate "2022.07.12"]
[EventType "swiss"]
[EventCountry "SVK"]
[SourceTitle "playchess.com"]
[Source "ChessBase"]
[SourceQuality "1"]
[TimeControl "40/5400+30:1800+30"]

1. d4 {[%emt 0:00:09]} d5 {[%emt 0:00:12]} 2. c4 {[%emt 0:00:07]} c6 {[%emt 0:00:03]} 3. Nf3 {[%emt 0:00:17]} Nf6 {[%emt 0:00:12]} 4. Nc3 {[%emt 0:00:22]} e6 {[%emt 0:00:29]} 5. Bg5 {[%emt 0:00:47]} Nbd7 {[%emt 0:00:13]} 6. e3 {[%emt 0:00:32]} Qa5 {[%emt 0:00:17]} 7. Nd2 {[%emt 0:01:20]} Bb4 {[%emt 0:00:40]} 8. Qc2 {[%emt 0:00:38]} dxc4 {[%emt 0:00:15]} 9. Bxf6 {[%emt 0:00:15]} Nxf6 {[%emt 0:00:04]} 10. Nxc4 {[%emt 0:00:05]} Qc7 {[%emt 0:00:18]} 11. Be2 {[%emt 0:01:36]} c5 {[%emt 0:02:59]} 12. O-O {[%emt 0:05:48]} Bd7 {[%emt 0:06:43]} 13. a3 {[%emt 0:13:02]} cxd4 {[%emt 0:04:25]} 14. axb4 {[%emt 0:10:55]} dxc3 {[%emt 0:00:05]} 15. Qxc3 {[%emt 0:00:16]} O-O {[%emt 0:24:27]} 16. Ne5 {[%emt 0:04:14]} Rfc8 {[%emt 0:05:47]} 17. Qxc7 {[%emt 0:04:37]} Rxc7 {[%emt 0:00:06]} 18. Rfc1 {[%emt 0:00:16]} Rxc1+ {[%emt 0:04:05]} 19. Rxc1 {[%emt 0:00:40]} Rc8 {[%emt 0:00:25]} 20. Rxc8+ {[%emt 0:11:34]} Bxc8 {[%emt 0:00:04]} 21. Bf3 {[%emt 0:01:01]} Kf8 {[%emt 0:04:18]} 22. Kf1 {[%emt 0:01:10]} Ke7 {[%emt 0:02:00]} 23. Ke2 {[%emt 0:00:32]} Ne8 {[%emt 0:01:15]} 24. Kd3 {[%emt 0:02:21]} f6 {[%emt 0:02:15]} 25. Nc4 {[%emt 0:00:16]} b6 {[%emt 0:00:30]} 26. Be4 {[%emt 0:04:35]} Ba6 {[%emt 0:09:03]} 27. b3 {[%emt 0:06:48]} h6 {[%emt 0:05:29]} 28. f4 {[%emt 0:02:00]} Nc7 {[%emt 0:03:07]} 29. Kc3 {[%emt 0:04:14]} g5 {[%emt 0:01:02]} 30. g3 {[%emt 0:00:55]} Bb5 {[%emt 0:02:55]} 31. Bf3 {[%emt 0:03:05]} Be8 {[%emt 0:00:54]} 32. Nd2 {[%emt 0:05:17]} Nb5+ {[%emt 0:01:30]} 33. Kd3 {[%emt 0:01:13]} Nd6 {[%emt 0:00:41]} 34. Ba8 {[%emt 0:08:30]} Bb5+ {[%emt 0:04:56]} 35. Kd4 {[%emt 0:04:40]} Nf5+ {[%emt 0:01:03]} 36. Ke4 {[%emt 0:00:03]} Be2 {[%emt 0:02:17]} 37. Bc6 {[%emt 0:01:09]} g4 {[%emt 0:03:09]} 38. b5 {[%emt 0:03:06]} Kd6 {[%emt 0:05:34]} 39. b4 {[%emt 0:00:31]} Kc7 {[%emt 0:01:12]} 40. Nb3 {[%emt 0:00:38]} a6 {[%emt 0:01:31]} 41. Nc1 {[%emt 0:30:48]} Bf1 {[%emt 0:30:17]} 42. Nb3 {[%emt 0:00:36]} axb5 {[%emt 0:00:21]} 0-1

[Event "Slovakia Open Piestany-A 2022"]
[Site "Piestany"]
[Date "2022.07.15"]
[Round "6.6"]
[White "Samunenkov, Ihor"]
[Black "Niedbala, Bartlomiej"]
[Result "0-1"]
[ECO "D45"]
[WhiteElo "2448"]
[BlackElo "2381"]
[Annotator "ChessBase"]
[PlyCount "72"]
[EventDate "2022.07.12"]
[EventType "swiss"]
[EventCountry "SVK"]
[SourceTitle "playchess.com"]
[Source "ChessBase"]
[SourceQuality "1"]
[TimeControl "40/5400+30:1800+30"]

1. Nf3 {[%emt 0:00:04]} d5 {[%emt 0:05:28]} 2. e3 {[%emt 0:00:16]} Nf6 {[%emt 0:00:26]} 3. c4 {[%emt 0:00:15]} c6 {[%emt 0:00:23]} 4. Nc3 {[%emt 0:00:23]} e6 {[%emt 0:02:12]} 5. d4 {[%emt 0:00:16]} a6 {[%emt 0:04:54]} 6. Qc2 {[%emt 0:08:08]} c5 {[%emt 0:04:04]} 7. cxd5 {[%emt 0:09:40]} exd5 {[%emt 0:01:24]} 8. Be2 {[%emt 0:07:05]} Nc6 {[%emt 0:01:07]} 9. O-O {[%emt 0:01:23]} cxd4 {[%emt 0:02:26]} 10. Nxd4 {[%emt 0:00:56]} Nxd4 {[%emt 0:03:32]} 11. exd4 {[%emt 0:00:24]} Be7 {[%emt 0:00:13]} 12. Qb3 {[%emt 0:11:02]} O-O {[%emt 0:15:21]} 13. Bf3 {[%emt 0:03:20]} Be6 {[%emt 0:04:35]} 14. Qxb7 {[%emt 0:03:16]} Qd6 {[%emt 0:01:36]} 15. Qb3 {[%emt 0:01:35]} Rab8 {[%emt 0:01:56]} 16. Qd1 {[%emt 0:03:39]} Rfc8 {[%emt 0:04:36]} 17. g3 {[%emt 0:06:17]} Qc6 {[%emt 0:04:23]} 18. Re1 {[%emt 0:07:58]} Bb4 {[%emt 0:11:08]} 19. Bf4 {[%emt 0:10:39]} Bxc3 {[%emt 0:01:24]} 20. bxc3 {[%emt 0:00:15]} Rb2 {[%emt 0:02:37]} 21. Rc1 {[%emt 0:09:21]} Qc4 {[%emt 0:07:18]} 22. a4 {[%emt 0:01:58]} Ra2 {[%emt 0:02:01]} 23. Re5 {[%emt 0:05:53]} Qxa4 {[%emt 0:07:38]} 24. Qe1 {[%emt 0:00:59]} Kh8 {[%emt 0:06:23]} 25. Bg5 {[%emt 0:02:08]} Qd7 {[%emt 0:03:18]} 26. Bxf6 {[%emt 0:03:18]} gxf6 {[%emt 0:00:01]} 27. Rh5 {[%emt 0:00:15]} Rg8 {[%emt 0:01:52]} 28. Qe3 {[%emt 0:00:36]} Rg6 {[%emt 0:00:28]} 29. Qf4 {[%emt 0:02:11]} Kg7 {[%emt 0:00:30]} 30. Kg2 {[%emt 0:00:28]} h6 {[%emt 0:00:08]} 31. h4 {[%emt 0:00:51]} Rb2 {[%emt 0:01:46]} 32. Kg1 {[%emt 0:01:07]} a5 {[%emt 0:00:28]} 33. c4 {[%emt 0:00:18]} a4 {[%emt 0:00:01]} 34. cxd5 {[%emt 0:00:39]} Bg4 {[%emt 0:00:30]} 35. Rc7 {[%emt 0:00:35]} Bxf3 {[%emt 0:00:00]} 36. Rc1 {[%emt 0:00:30]} Bxh5 {[%emt 0:00:00]} 0-1

[Event "Slovakia Open Piestany-A 2022"]
[Site "Piestany"]
[Date "2022.07.15"]
[Round "6.7"]
[White "Czerw, Dawid"]
[Black "Piesik, Piotr"]
[Result "1-0"]
[ECO "C16"]
[WhiteElo "2391"]
[BlackElo "2440"]
[Annotator "ChessBase"]
[PlyCount "65"]
[EventDate "2022.07.12"]
[EventType "swiss"]
[EventCountry "SVK"]
[SourceTitle "playchess.com"]
[Source "ChessBase"]
[SourceQuality "1"]
[TimeControl "40/5400+30:1800+30"]

1. e4 {[%emt 0:00:05]} e6 {[%emt 0:04:43]} 2. d4 {[%emt 0:00:11]} d5 {[%emt 0:00:05]} 3. Nc3 {[%emt 0:00:05]} Bb4 {[%emt 0:00:14]} 4. e5 {[%emt 0:00:11]} b6 {[%emt 0:02:21]} 5. a3 {[%emt 0:08:05]} Bxc3+ {[%emt 0:09:12]} 6. bxc3 {[%emt 0:00:05]} Qd7 {[%emt 0:01:22]} 7. Qg4 {[%emt 0:02:14]} f5 {[%emt 0:04:57]} 8. Qg3 {[%emt 0:02:49]} Ba6 {[%emt 0:02:02]} 9. Bxa6 {[%emt 0:00:21]} Nxa6 {[%emt 0:00:04]} 10. a4 {[%emt 0:00:50]} O-O-O {[%emt 0:18:29]} 11. a5 {[%emt 0:01:24]} Nb8 {[%emt 0:01:47]} 12. axb6 {[%emt 0:00:24]} cxb6 {[%emt 0:00:04]} 13. Ba3 {[%emt 0:08:15]} Nh6 {[%emt 0:06:40]} 14. Ne2 {[%emt 0:03:32]} Nc6 {[%emt 0:03:37]} 15. O-O {[%emt 0:05:27]} Na5 {[%emt 0:01:39]} 16. Bc1 {[%emt 0:01:57]} Ng8 {[%emt 0:12:09]} 17. Rxa5 {[%emt 0:04:44]} bxa5 {[%emt 0:00:05]} 18. Ba3 {[%emt 0:00:47]} Kb7 {[%emt 0:09:12]} 19. Nf4 {[%emt 0:08:32]} Nh6 {[%emt 0:00:34]} 20. c4 {[%emt 0:06:29]} g5 {[%emt 0:09:23]} 21. Qxg5 {[%emt 0:03:42]} Nf7 {[%emt 0:00:03]} 22. Qf6 {[%emt 0:06:28]} Rhg8 {[%emt 0:01:59]} 23. Nxe6 {[%emt 0:09:09]} Rc8 {[%emt 0:00:03]} 24. Nc5+ {[%emt 0:01:35]} Rxc5 {[%emt 0:00:04]} 25. e6 {[%emt 0:02:30]} Qd8 {[%emt 0:01:39]} 26. Qxf7+ {[%emt 0:00:18]} Rc7 {[%emt 0:00:09]} 27. e7 {[%emt 0:01:09]} Qc8 {[%emt 0:06:55]} 28. Qxd5+ {[%emt 0:03:49]} Rc6 {[%emt 0:00:04]} 29. Rb1+ {[%emt 0:00:42]} Kc7 {[%emt 0:00:04]} 30. Bc1 {[%emt 0:02:27]} Rg4 {[%emt 0:00:49]} 31. Qe5+ {[%emt 0:00:39]} Kd7 {[%emt 0:00:07]} 32. e8=Q+ {[%emt 0:00:35]} Qxe8 {[%emt 0:00:12]} 33. Rb7+ {[%emt 0:00:04]} 1-0

[Event "Slovakia Open Piestany-A 2022"]
[Site "Piestany"]
[Date "2022.07.15"]
[Round "6.8"]
[White "Sahidi, Samir"]
[Black "Kostolansky, Sebastian Lukas"]
[Result "1/2-1/2"]
[ECO "E05"]
[WhiteElo "2462"]
[BlackElo "2406"]
[Annotator "ChessBase"]
[PlyCount "115"]
[EventDate "2022.07.12"]
[EventType "swiss"]
[EventCountry "SVK"]
[SourceTitle "playchess.com"]
[Source "ChessBase"]
[SourceQuality "1"]
[TimeControl "40/5400+30:1800+30"]

1. d4 {[%emt 0:00:13]} Nf6 {[%emt 0:00:11]} 2. c4 {[%emt 0:00:18]} e6 {[%emt 0:00:26]} 3. Nf3 {[%emt 0:00:09]} d5 {[%emt 0:01:11]} 4. g3 {[%emt 0:00:24]} Be7 {[%emt 0:02:30]} 5. Bg2 {[%emt 0:00:36]} O-O {[%emt 0:00:24]} 6. O-O {[%emt 0:04:16]} dxc4 {[%emt 0:03:24]} 7. Qc2 {[%emt 0:00:22]} b5 {[%emt 0:00:36]} 8. a4 {[%emt 0:00:20]} Bb7 {[%emt 0:12:29]} 9. axb5 {[%emt 0:14:45]} a6 {[%emt 0:00:05]} 10. Nc3 {[%emt 0:04:39]} axb5 {[%emt 0:04:01]} 11. Rxa8 {[%emt 0:00:22]} Bxa8 {[%emt 0:00:05]} 12. Nxb5 {[%emt 0:00:13]} Bxf3 {[%emt 0:12:43]} 13. Bxf3 {[%emt 0:00:43]} c6 {[%emt 0:00:04]} 14. Na3 {[%emt 0:08:19]} Bxa3 {[%emt 0:16:46]} 15. bxa3 {[%emt 0:00:19]} Qxd4 {[%emt 0:00:04]} 16. Bb2 {[%emt 0:07:20]} Qc5 {[%emt 0:01:03]} 17. Rc1 {[%emt 0:11:36]} Nbd7 {[%emt 0:05:44]} 18. Qxc4 {[%emt 0:02:13]} Qxc4 {[%emt 0:02:18]} 19. Rxc4 {[%emt 0:00:10]} c5 {[%emt 0:00:52]} 20. Ra4 {[%emt 0:01:56]} Rb8 {[%emt 0:08:34]} 21. Ra8 {[%emt 0:03:14]} Rxa8 {[%emt 0:01:20]} 22. Bxa8 {[%emt 0:00:08]} Nb6 {[%emt 0:00:05]} 23. Bc6 {[%emt 0:01:12]} Nc4 {[%emt 0:00:47]} 24. Bc1 {[%emt 0:00:31]} Nd5 {[%emt 0:03:07]} 25. Kf1 {[%emt 0:09:55]} Kf8 {[%emt 0:05:10]} 26. Ke1 {[%emt 0:06:27]} Ke7 {[%emt 0:10:16]} 27. Ba4 {[%emt 0:01:06]} Na5 {[%emt 0:02:36]} 28. Bc2 {[%emt 0:02:21]} c4 {[%emt 0:02:48]} 29. e4 {[%emt 0:00:40]} Nc7 {[%emt 0:00:24]} 30. Be3 {[%emt 0:03:22]} Nb5 {[%emt 0:02:28]} 31. a4 {[%emt 0:00:33]} Nd6 {[%emt 0:00:12]} 32. Kd2 {[%emt 0:01:23]} e5 {[%emt 0:00:46]} 33. Kc3 {[%emt 0:00:30]} Kd7 {[%emt 0:00:30]} 34. Bb6 {[%emt 0:00:35]} Nb3 {[%emt 0:00:40]} 35. f3 {[%emt 0:03:33]} Kc6 {[%emt 0:00:36]} 36. Be3 {[%emt 0:00:12]} Nc5 {[%emt 0:01:03]} 37. Bd1 {[%emt 0:00:29]} f6 {[%emt 0:01:04]} 38. h4 {[%emt 0:00:44]} f5 {[%emt 0:00:49]} 39. Bc2 {[%emt 0:01:02]} fxe4 {[%emt 0:00:08]} 40. Bxc5 {[%emt 0:00:27]} Kxc5 {[%emt 0:00:48]} 41. Bxe4 {[%emt 0:31:11]} h6 {[%emt 0:03:43]} 42. h5 {[%emt 0:00:00]} Ne8 {[%emt 0:07:27]} 43. a5 {[%emt 0:00:00]} Nc7 {[%emt 0:01:35]} 44. g4 {[%emt 0:00:00]} Nb5+ {[%emt 0:02:38]} 45. Kd2 {[%emt 0:00:00]} Nd6 {[%emt 0:10:53]} 46. Kc3 {[%emt 0:00:00]} Nb5+ {[%emt 0:01:17]} 47. Kb2 {[%emt 0:00:47]} Nd6 {[%emt 0:00:51]} 48. Kc3 {[%emt 0:06:00]} Kb5 {[%emt 0:00:08]} 49. Bd5 {[%emt 0:00:15]} Kc5 {[%emt 0:00:47]} 50. Bg8 {[%emt 0:03:46]} e4 {[%emt 0:03:21]} 51. fxe4 {[%emt 0:00:42]} Nxe4+ {[%emt 0:00:04]} 52. Kc2 {[%emt 0:00:15]} Kb5 {[%emt 0:02:17]} 53. Bxc4+ {[%emt 0:01:55]} Kxa5 {[%emt 0:00:03]} 54. Be2 {[%emt 0:03:26]} Kb6 {[%emt 0:00:03]} 55. Kd3 {[%emt 0:00:10]} Ng5 {[%emt 0:01:30]} 56. Kd4 {[%emt 0:00:31]} Kc7 {[%emt 0:00:04]} 57. Ke5 {[%emt 0:00:55]} Kd7 {[%emt 0:00:04]} 58. Kf5 {[%emt 0:00:21]} 1/2-1/2

[Event "Slovakia Open Piestany-A 2022"]
[Site "Piestany"]
[Date "2022.07.15"]
[Round "6.9"]
[White "Domalchuk-Jonasson, Aleksandr"]
[Black "Gretarsson, Helgi Ass"]
[Result "0-1"]
[ECO "E33"]
[WhiteElo "2244"]
[BlackElo "2472"]
[Annotator "ChessBase"]
[PlyCount "102"]
[EventDate "2022.07.12"]
[EventType "swiss"]
[EventCountry "SVK"]
[SourceTitle "playchess.com"]
[Source "ChessBase"]
[SourceQuality "1"]
[TimeControl "40/5400+30:1800+30"]

1. d4 {[%emt 0:01:42]} Nf6 {[%emt 0:00:02]} 2. c4 {[%emt 0:00:47]} Nc6 {[%emt 0:00:05]} 3. Nf3 {[%emt 0:02:04]} e6 {[%emt 0:01:10]} 4. Nc3 {[%emt 0:02:38]} Bb4 {[%emt 0:00:05]} 5. Qc2 {[%emt 0:01:31]} d6 {[%emt 0:06:31]} 6. Bd2 {[%emt 0:02:40]} O-O {[%emt 0:00:50]} 7. a3 {[%emt 0:00:34]} Bxc3 {[%emt 0:01:06]} 8. Bxc3 {[%emt 0:00:09]} Re8 {[%emt 0:02:49]} 9. b4 {[%emt 0:20:24]} a5 {[%emt 0:09:26]} 10. b5 {[%emt 0:06:24]} Ne7 {[%emt 0:00:08]} 11. g3 {[%emt 0:04:53]} b6 {[%emt 0:02:08]} 12. Bg2 {[%emt 0:01:28]} Bb7 {[%emt 0:00:05]} 13. O-O {[%emt 0:00:57]} Be4 {[%emt 0:19:26]} 14. Qb2 {[%emt 0:03:09]} h6 {[%emt 0:01:33]} 15. Rfd1 {[%emt 0:10:28]} Qb8 {[%emt 0:22:11]} 16. Rac1 {[%emt 0:09:25]} Qb7 {[%emt 0:00:29]} 17. a4 {[%emt 0:06:53]} Rac8 {[%emt 0:05:49]} 18. c5 {[%emt 0:12:18]} Qd5 {[%emt 0:06:58]} 19. Ne1 {[%emt 0:03:10]} Bxg2 {[%emt 0:00:06]} 20. Nxg2 {[%emt 0:00:04]} Qh5 {[%emt 0:00:05]} 21. f3 {[%emt 0:02:02]} g5 {[%emt 0:02:10]} 22. e4 {[%emt 0:02:48]} Nd7 {[%emt 0:03:52]} 23. cxd6 {[%emt 0:01:52]} cxd6 {[%emt 0:00:05]} 24. Qe2 {[%emt 0:00:18]} d5 {[%emt 0:02:58]} 25. e5 {[%emt 0:01:47]} Rc4 {[%emt 0:00:09]} 26. Ne3 {[%emt 0:01:01]} Rxa4 {[%emt 0:00:28]} 27. Kg2 {[%emt 0:00:55]} Qg6 {[%emt 0:00:21]} 28. g4 {[%emt 0:00:51]} f6 {[%emt 0:04:40]} 29. exf6 {[%emt 0:00:35]} Nxf6 {[%emt 0:00:02]} 30. Qb2 {[%emt 0:00:31]} h5 {[%emt 0:01:28]} 31. Qb3 {[%emt 0:00:37]} Rc4 {[%emt 0:02:55]} 32. Nxc4 {[%emt 0:00:11]} dxc4 {[%emt 0:00:01]} 33. Qxc4 {[%emt 0:00:45]} Nfd5 {[%emt 0:03:17]} 34. Bd2 {[%emt 0:00:28]} hxg4 {[%emt 0:00:29]} 35. Rf1 {[%emt 0:00:55]} Nf5 {[%emt 0:00:28]} 36. Kg1 {[%emt 0:00:41]} Nh4 {[%emt 0:00:53]} 37. Qe2 {[%emt 0:00:33]} Nxf3+ {[%emt 0:01:30]} 38. Kh1 {[%emt 0:00:25]} Rf8 {[%emt 0:01:55]} 39. Qg2 {[%emt 0:00:30]} Qe4 {[%emt 0:00:31]} 40. Rf2 {[%emt 0:00:34]} Qxd4 {[%emt 0:00:40]} 41. Rcf1 {[%emt 0:10:36]} Rf5 {[%emt 0:08:17]} 42. Bc1 {[%emt 0:03:44]} Kh7 {[%emt 0:09:41]} 43. h3 {[%emt 0:10:54]} Nh4 {[%emt 0:00:52]} 44. Rxf5 {[%emt 0:01:51]} Nxg2 {[%emt 0:00:23]} 45. Rf7+ {[%emt 0:00:04]} Kg6 {[%emt 0:00:09]} 46. Kxg2 {[%emt 0:00:06]} Nf4+ {[%emt 0:02:18]} 47. Bxf4 {[%emt 0:01:35]} Qe4+ {[%emt 0:00:05]} 48. Kg3 {[%emt 0:01:31]} Kxf7 {[%emt 0:00:05]} 49. Bxg5+ {[%emt 0:00:31]} Kg6 {[%emt 0:00:06]} 50. Kh4 {[%emt 0:00:45]} gxh3+ {[%emt 0:00:19]} 51. Bf4 {[%emt 0:00:18]} h2 {[%emt 0:00:15]} 0-1